fUSD/lending_fUSD_20240526
["ID","MTS","AMOUNT","RATE_DAILY","PERIOD"]
[327992494,1716763862019,-500.0,0.00030958,4]
[327992495,1716763862028,-276.60829832,0.0003097,7]
[327992496,1716763862038,-345.69721888,0.00030999,4]
[327992497,1716763862047,-1397.40013209,0.00030999,4]
[327992498,1716763862056,-50387.35835515,0.00030999,2]
[327992499,1716763862066,-164.61062386,0.00030999,2]
[327992500,1716763862075,-1612.53851257,0.00030999,4]
[327992501,1716763862085,-500.0,0.00030999,5]
[327992502,1716763862095,-2000.0,0.00030999,2]
[327992503,1716763862104,-200.0,0.00030999,2]
[327992504,1716763862113,-155.0,0.00031,4]
[327992505,1716763862122,-1000.0,0.00031,7]
[327992506,1716763862132,-500.0,0.00031,2]
[327992507,1716763862141,-1300.0,0.00031,2]
[327992508,1716763862151,-155.03078473,0.00031008,7]
[327992509,1716763862160,-276.60829832,0.00031151,7]
[327992510,1716763862170,-155.03078473,0.00031176,7]
[327992511,1716763862179,-276.60829832,0.00031203,7]
[327992512,1716763862188,-500.0,0.00031232,4]
[327992513,1716763862198,-768.66,0.00031232,4]
[327992514,1716763862207,-500.0,0.00031232,4]
[327992515,1716763862217,-555.4994371,0.00031232,4]
[327992516,1716763862226,-2072.24,0.00031232,4]
[327992517,1716763862235,-500.0,0.00031232,4]
[327992518,1716763862244,-660.23,0.00031232,4]
[327992519,1716763862253,-858.77,0.00031232,4]
[327992520,1716763862262,-665.43,0.00031232,4]
[327992521,1716763862271,-500.0,0.00031232,4]
[327992522,1716763862280,-500.0,0.00031232,4]
[327992523,1716763862290,-156.26787985,0.00031252,7]
[327992524,1716763862298,-200.0,0.00031309,2]
[327992525,1716763862307,-6530.20310698,0.00031309,2]
[327992526,1716763862317,-276.60829832,0.00031345,7]
[327992527,1716763862326,-154.36900518,0.00031361,7]
[327992528,1716763862335,-153.564311,0.00031371,7]
[327992529,1716763862346,-500.0,0.0003139,10]
[327992530,1716763862355,-700.0,0.0003139,10]
[327992531,1716763862364,-443.756926,0.0003139,10]
[327992532,1716763862374,-328.0,0.000314,20]
[327992533,1716763862383,-156.26787985,0.00031406,7]
[327992534,1716763862392,-154.93677966,0.00031429,7]
[327992535,1716763862401,-169.18135279,0.00031452,7]
[327992536,1716763862414,-500.0,0.00031465,2]
[327992537,1716763862425,-154.0460557,0.00031477,7]
[327992538,1716763862434,-626.54,0.000315,2]
[327992539,1716763862443,-16896.28075083,0.000315,3]
[327992540,1716763862454,-276.60829832,0.000315,7]
[327992541,1716763862463,-500.0,0.00031506,4]
[327992542,1716763862472,-768.66,0.00031506,4]
[327992543,1716763862481,-500.0,0.00031506,4]
[327992544,1716763862491,-2072.24,0.00031506,4]
[327992545,1716763862500,-500.0,0.00031506,4]
[327992546,1716763862509,-660.23,0.00031506,4]
[327992547,1716763862519,-858.77,0.00031506,4]
[327992548,1716763862529,-665.43,0.00031506,4]
[327992549,1716763862538,-500.0,0.00031506,4]
[327992550,1716763862547,-154.22,0.00031546,2]
[327992551,1716763862557,-200.0,0.00031622,2]
[327992552,1716763862567,-155.03078473,0.00031626,7]
[327992553,1716763862576,-156.26787985,0.00031629,7]
[327992554,1716763862588,-276.60829832,0.00031691,7]
[327992555,1716763862598,-694.98447913,0.00031754,2]
[327992556,1716763862608,-155.03078473,0.00031775,7]
[327992557,1716763862618,-4070.91946332,0.0003178,2]
[327992558,1716763862627,-194.74822836,0.0003178,4]
[327992559,1716763862637,-768.66,0.0003178,4]
[327992560,1716763862646,-500.0,0.0003178,4]
[327992561,1716763862655,-2072.24,0.0003178,4]
[327992562,1716763862665,-500.0,0.0003178,4]
[327992563,1716763862675,-660.23,0.0003178,4]
[327992564,1716763862684,-858.77,0.0003178,4]
[327992565,1716763862694,-1424.43572808,0.0003178,2]
[327992566,1716763862704,-665.43,0.0003178,4]
[327992567,1716763862713,-500.0,0.0003178,4]
[327992568,1716763862724,-166.66666668,0.00031783,7]
[327992569,1716763862734,-997.4,0.00031815,2]
[327992570,1716763862743,-276.60829832,0.00031826,7]
[327992571,1716763862753,-65390.76714591,0.0003189,2]
[327992572,1716763862762,-328.0,0.000319,20]
[327992573,1716763862771,-151.0,0.000319,19]
[327992574,1716763862781,-150.0,0.00031912,7]
[327992575,1716763862791,-154.04605572,0.00031917,7]
[327992576,1716763862800,-154.36900518,0.00031921,7]
[327992577,1716763862810,-500.0,0.00031937,2]
[327992578,1716763862820,-200.0,0.00031938,2]
[327992579,1716763862830,-207.0,0.0003194,2]
[327992580,1716763862840,-152.21961362,0.00031948,2]
[327992581,1716763862849,-150.0,0.0003195,7]
[327992582,1716763862858,-150.0,0.0003195,7]
[327992583,1716763862868,-150.0,0.0003195,7]
[327992584,1716763862877,-150.0,0.0003195,7]
[327992585,1716763862887,-150.0,0.0003195,7]
[327992586,1716763862896,-150.0,0.0003195,7]
[327992587,1716763862906,-150.0,0.0003195,7]
[327992588,1716763862915,-150.0,0.0003195,7]
[327992589,1716763862925,-150.0,0.0003195,7]
[327992590,1716763862935,-150.0,0.0003195,7]
[327992591,1716763862945,-154.46581357,0.00031964,7]
[327992592,1716763862955,-154.93677968,0.0003199,7]
[327992593,1716763862966,-291.3057086,0.00031997,2]
[327992594,1716763862976,-333.85119275,0.00032,4]
[327992595,1716763862986,-2767.0,0.00032,2]
[327992596,1716763862996,-577916.5,0.00032,5]
[327992597,1716763863006,-2497.17,0.00032,2]
[327992598,1716763863015,-154.4306287,0.00032014,7]
[327992599,1716763863025,-2500.0,0.00032026,2]
[327992600,1716763863034,-150.0,0.00032029,7]
[327992601,1716763863044,-2500.0,0.00032035,2]
[327992602,1716763863054,-5000.0,0.0003205,2]
[327992603,1716763863063,-5000.0,0.00032051,2]
[327992604,1716763863073,-768.66,0.00032054,4]
[327992605,1716763863082,-264.85769114,0.00032054,4]
[327992606,1716763863095,-2072.24,0.00032054,4]
[327992607,1716763863103,-356.74,0.00032054,4]
[327992608,1716763863112,-660.23,0.00032054,4]
[327992609,1716763863123,-858.77,0.00032054,4]
[327992610,1716763863133,-665.43,0.00032054,4]
[327992611,1716763863143,-500.0,0.00032054,4]
[327992612,1716763863153,-2500.0,0.00032066,2]
[327992613,1716763863163,-150.0,0.00032108,7]
[327992614,1716763863172,-152.0,0.00032119,3]
[327992615,1716763863182,-166.66666667,0.00032124,7]
[327992616,1716763863191,-2500.0,0.00032133,2]
[327992617,1716763863201,-154.36900518,0.00032141,7]
[327992618,1716763863210,-3357.38,0.00032142,2]
[327992619,1716763863219,-150.0,0.00032151,120]
[327992620,1716763863229,-276.60829832,0.00032152,7]
[327992621,1716763863238,-154.36900518,0.00032153,7]
[327992622,1716763863248,-150.0,0.00032159,7]
[327992623,1716763863257,-10000.0,0.0003217,2]
[327992624,1716763863266,-150.0,0.00032187,7]
[327992625,1716763863275,-150.0,0.00032187,7]
[327992626,1716763863285,-865.35,0.00032188,2]
[327992627,1716763863294,-197.8,0.00032216,7]
[327992628,1716763863305,-383.94,0.00032227,2]
[327992629,1716763863315,-155.03078473,0.00032239,7]
[327992630,1716763863326,-150.0,0.00032266,7]
[327992631,1716763863336,-250.0,0.0003227,2]
[327992632,1716763863347,-2500.0,0.0003227,2]
[327992633,1716763863356,-154.36900518,0.00032274,7]
[327992634,1716763863365,-5000.0,0.00032284,2]
[327992635,1716763863374,-768.66,0.00032328,4]
[327992636,1716763863384,-2072.24,0.00032328,4]
[327992637,1716763863394,-660.23,0.00032328,4]
[327992638,1716763863404,-858.77,0.00032328,4]
[327992639,1716763863419,-665.43,0.00032328,4]
[327992640,1716763863428,-500.0,0.00032328,4]
[327992641,1716763863438,-150.0,0.00032344,7]
[327992642,1716763863447,-5000.0,0.0003235,2]
[327992643,1716763863457,-4606.71,0.00032359,2]
[327992644,1716763863467,-276.60829843,0.00032367,7]
[327992645,1716763863477,-156.26787986,0.00032367,7]
[327992646,1716763863486,-150.0,0.00032368,7]
[327992647,1716763863497,-171.96,0.000324,2]
[327992648,1716763863507,-328.0,0.000324,21]
[327992649,1716763863517,-522.4540802,0.00032416,2]
[327992650,1716763863526,-150.0,0.00032423,7]
[327992651,1716763863535,-150.0,0.00032423,7]
[327992652,1716763863545,-156.4762523,0.00032465,7]
[327992653,1716763863555,-5000.0,0.00032477,2]
[327992654,1716763863564,-500.0,0.00032486,10]
[327992655,1716763863574,-700.0,0.00032486,10]
[327992656,1716763863583,-150.0,0.00032502,7]
[327992657,1716763863595,-156.4762523,0.00032508,7]
[327992658,1716763863604,-155.03078473,0.00032511,7]
[327992659,1716763863613,-2504.12,0.00032518,2]
[327992660,1716763863623,-5000.0,0.00032533,2]
[327992661,1716763863631,-154.36900524,0.00032548,7]
[327992662,1716763863641,-150.0,0.00032576,7]
[327992663,1716763863650,-150.0,0.00032581,7]
[327992664,1716763863660,-768.66,0.00032602,4]
[327992665,1716763863669,-2072.24,0.00032602,4]
[327992666,1716763863678,-660.23,0.00032602,4]
[327992667,1716763863687,-858.77,0.00032602,4]
[327992668,1716763863698,-665.43,0.00032602,4]
[327992669,1716763863707,-587.65592535,0.00032602,4]
[327992670,1716763863717,-158.08379997,0.00032608,7]
[327992671,1716763863726,-2500.64,0.00032623,2]
[327992672,1716763863735,-150.0,0.0003266,7]
[327992673,1716763863745,-150.0,0.0003266,7]
[327992674,1716763863754,-150.0,0.0003266,7]
[327992675,1716763863764,-4130.48,0.00032705,2]
[327992676,1716763863877,-2500.64,0.00032709,2]
[327992677,1716763863888,-9357.17787555,0.00032726,2]
[327992678,1716763863898,-150.0,0.00032739,7]
[327992679,1716763863908,-5000.0,0.00032752,2]
[327992680,1716763863918,-154.46581359,0.00032763,7]
[327992681,1716763863929,-5000.0,0.00032784,2]
[327992682,1716763863939,-150.0,0.00032785,7]
[327992683,1716763863949,-10000.0,0.00032789,2]
[327992684,1716763863959,-4659.68,0.00032817,2]
[327992685,1716763863969,-150.0,0.00032818,7]
[327992686,1716763863979,-2504.12,0.00032833,2]
[327992687,1716763863989,-5000.0,0.00032846,2]
[327992688,1716763863998,-155.03078478,0.00032855,7]
[327992689,1716763864009,-768.66,0.00032876,4]
[327992690,1716763864019,-2072.24,0.00032876,4]
[327992691,1716763864028,-660.23,0.00032876,4]
[327992692,1716763864038,-858.77,0.00032876,4]
[327992693,1716763864048,-665.43,0.00032876,4]
[327992694,1716763864058,-13751.73,0.00032877,2]
[327992695,1716763864067,-9754.32,0.00032877,2]
[327992696,1716763864076,-168.5,0.00032877,2]
[327992697,1716763864086,-1000.0,0.00032877,14]
[327992698,1716763864097,-155.0,0.00032877,4]
[327992699,1716763864107,-150.0,0.00032897,7]
[327992700,1716763864116,-150.0,0.00032897,7]
[327992701,1716763864126,-1700.27630279,0.00032899,2]
[327992702,1716763864136,-13204.08186817,0.000329,30]
[327992703,1716763864146,-760.22888192,0.000329,2]
[327992704,1716763864155,-328.0,0.000329,21]
[327992705,1716763864165,-5000.0,0.000329,2]
[327992706,1716763864175,-751.0,0.000329,2]
[327992707,1716763864185,-500.9690138,0.000329,2]
[327992708,1716763864195,-2500.0,0.0003291,2]
[327992709,1716763864204,-1000.0,0.00032945,14]
[327992710,1716763864214,-150.0,0.00032976,7]
[327992711,1716763864224,-150.0,0.00032994,7]
[327992712,1716763864234,-1308.66423469,0.00033,2]
[327992713,1716763864243,-1169.75510299,0.00033,2]
[327992714,1716763864253,-626.54,0.00033,2]
[327992715,1716763864262,-1350.0,0.00033,2]
[327992716,1716763864271,-730.72593,0.00033,2]
[327992717,1716763864280,-3000.0,0.00033,2]
[327992718,1716763864290,-1000.0,0.00033014,14]
[327992719,1716763864300,-150.0,0.00033054,7]
[327992720,1716763864310,-1000.0,0.00033082,14]
[327992721,1716763864319,-500.0,0.00033096,30]
[327992722,1716763864329,-997.4,0.0003312,2]
[327992723,1716763864340,-207.0,0.0003313,2]
[327992724,1716763864349,-150.0,0.00033133,7]
[327992725,1716763864359,-150.0,0.00033133,7]
[327992726,1716763864368,-150.0,0.00033133,7]
[327992727,1716763864378,-768.66,0.0003315,4]
[327992728,1716763864388,-2072.24,0.0003315,4]
[327992729,1716763864398,-660.23,0.0003315,4]
[327992730,1716763864409,-858.77,0.0003315,4]
[327992731,1716763864423,-665.43,0.0003315,4]
[327992732,1716763864432,-439.57,0.00033151,120]
[327992733,1716763864442,-658.75,0.00033151,120]
[327992734,1716763864451,-1000.0,0.00033151,14]
[327992735,1716763864461,-150.0,0.00033203,7]
[327992736,1716763864470,-150.0,0.00033212,7]
[327992737,1716763864480,-1000.0,0.00033219,14]
[327992738,1716763864491,-1000.0,0.00033288,14]
[327992739,1716763864500,-150.0,0.00033291,7]
[327992740,1716763864509,-157.363341,0.00033294,7]
[327992741,1716763864518,-5000.0,0.000333,10]
[327992742,1716763864528,-5000.0,0.00033313,2]
[327992743,1716763864538,-5000.0,0.00033313,2]
[327992744,1716763864547,-6530.20310698,0.00033355,5]
[327992745,1716763864557,-1000.0,0.00033356,14]
[327992746,1716763864566,-500.0,0.00033369,30]
[327992747,1716763864576,-150.0,0.0003337,7]
[327992748,1716763864586,-150.0,0.0003337,7]
[327992749,1716763864597,-150.0,0.0003337,7]
[327992750,1716763864606,-239.86,0.00033396,2]
[327992751,1716763864617,-253.96,0.00033396,2]
[327992752,1716763864627,-626.54,0.000334,2]
[327992753,1716763864636,-328.0,0.000334,22]
[327992754,1716763864646,-150.0,0.00033412,7]
[327992755,1716763864655,-768.66,0.00033424,4]
[327992756,1716763864665,-2072.24,0.00033424,4]
[327992757,1716763864675,-660.23,0.00033424,4]
[327992758,1716763864684,-858.77,0.00033424,4]
[327992759,1716763864695,-665.43,0.00033424,4]
[327992760,1716763864704,-1000.0,0.00033425,14]
[327992761,1716763864714,-150.0,0.00033449,7]
[327992762,1716763864723,-250.0,0.0003347,2]
[327992763,1716763864732,-1000.0,0.00033493,14]
[327992764,1716763864742,-2001.0540925,0.00033496,2]
[327992765,1716763864751,-41652.81489469,0.00033496,30]
[327992766,1716763864761,-154.999999,0.00033496,4]
[327992767,1716763864771,-1838.17726605,0.00033496,2]
[327992768,1716763864780,-170.00279265,0.00033496,7]
[327992769,1716763864790,-400.09065719,0.00033496,7]
[327992770,1716763864800,-10866.523785,0.00033496,30]
[327992771,1716763864810,-209.3914094,0.00033496,7]
[327992772,1716763864819,-20583.74422879,0.00033496,2]
[327992773,1716763864829,-165.44971085,0.00033496,2]
[327992774,1716763864841,-1000.0,0.00033496,2]
[327992775,1716763864850,-1000.0,0.00033496,2]
[327992776,1716763864859,-1000.0,0.00033496,2]
[327992777,1716763864868,-1000.0,0.00033496,2]
[327992778,1716763864877,-1000.0,0.00033496,2]
[327992779,1716763864886,-1000.0,0.00033496,2]
[327992780,1716763864896,-1000.0,0.00033496,2]
[327992781,1716763864905,-1000.0,0.00033496,2]
[327992782,1716763864914,-1000.0,0.00033496,2]
[327992783,1716763864924,-1000.0,0.00033496,2]
[327992784,1716763864933,-1000.0,0.00033496,2]
[327992785,1716763864943,-1000.0,0.00033496,2]
[327992786,1716763864952,-1000.0,0.00033496,60]
[327992787,1716763864961,-1000.0,0.00033496,60]
[327992788,1716763864971,-1000.0,0.00033496,60]
[327992789,1716763864980,-1000.0,0.00033496,60]
[327992790,1716763864989,-1000.0,0.00033496,60]
[327992791,1716763864998,-1000.0,0.00033496,60]
[327992792,1716763865008,-1000.0,0.00033496,60]
[327992793,1716763865017,-1000.0,0.00033496,60]
[327992794,1716763865026,-1000.0,0.00033496,60]
[327992795,1716763865036,-1048.29651235,0.00033496,60]
[327992796,1716763865045,-150.0,0.00033528,7]
[327992797,1716763865055,-1000.0,0.00033562,14]
[327992798,1716763865064,-500.0,0.00033582,10]
[327992799,1716763865074,-700.0,0.00033582,10]
[327992800,1716763865083,-150.0,0.00033607,7]
[327992801,1716763865093,-150.0,0.00033607,7]
[327992802,1716763865102,-150.0,0.00033621,7]
[327992803,1716763865111,-1000.0,0.0003363,14]
[327992804,1716763865121,-500.0,0.00033642,30]
[327992805,1716763865131,-7372.7038036,0.00033656,2]
[327992806,1716763865140,-150.0,0.00033686,7]
[327992807,1716763865150,-768.89195011,0.00033698,4]
[327992808,1716763865160,-2072.37751045,0.00033698,4]
[327992809,1716763865169,-660.32110517,0.00033698,4]
[327992810,1716763865179,-858.87,0.00033698,4]
[327992811,1716763865188,-665.64,0.00033698,4]
[327992812,1716763865198,-1000.0,0.00033699,14]
[327992813,1716763865208,-155.0,0.000337,5]
[327992814,1716763865217,-291.3057086,0.00033764,2]
[327992815,1716763865227,-150.0,0.00033764,7]
[327992816,1716763865236,-1000.0,0.00033767,14]
[327992817,1716763865246,-150.0,0.00033829,7]
[327992818,1716763865255,-1000.0,0.00033836,14]
[327992819,1716763865265,-197.8,0.00033843,15]
[327992820,1716763865274,-150.0,0.00033843,7]
[327992821,1716763865284,-150.0,0.00033843,7]
[327992822,1716763865293,-328.0,0.000339,23]
[327992823,1716763865302,-1000.0,0.00033904,14]
[327992824,1716763865312,-777.94,0.00033915,30]
[327992825,1716763865321,-150.0,0.00033922,7]
[327992826,1716763865330,-1000.0,0.00033973,14]
[327992827,1716763865339,-3373.30305817,0.0003399,2]
[327992828,1716763865348,-150.0,0.00034,30]
[327992829,1716763865357,-10000.0,0.00034,5]
[327992830,1716763865366,-259.18224645,0.00034,2]
[327992831,1716763865376,-14875.34368297,0.00034,7]
[327992832,1716763865386,-150.0,0.00034001,7]
[327992833,1716763865396,-150.0,0.00034038,7]
[327992834,1716763865406,-1000.0,0.00034041,14]
[327992835,1716763865418,-150.0,0.0003408,7]
[327992836,1716763865428,-150.0,0.0003408,7]
[327992837,1716763865438,-150.0,0.0003408,7]
[327992838,1716763865448,-1000.0,0.0003411,14]
[327992839,1716763865458,-150.0,0.00034159,7]
[327992840,1716763865467,-1000.0,0.00034178,14]
[327992841,1716763865477,-626.54,0.000342,2]
[327992842,1716763865486,-150.0,0.00034238,7]
[327992843,1716763865496,-1000.0,0.00034247,14]
[327992844,1716763865506,-150.0,0.00034247,7]
[327992845,1716763865516,-207.0,0.0003431,2]
[327992846,1716763865525,-1000.0,0.00034315,14]
[327992847,1716763865535,-150.0,0.00034317,7]
[327992848,1716763865545,-150.0,0.00034317,7]
[327992849,1716763865555,-150.0,0.00034317,7]
[327992850,1716763865564,-1000.0,0.00034384,14]
[327992851,1716763865573,-150.0,0.00034396,7]
[327992852,1716763865583,-13550.81145711,0.000344,2]
[327992853,1716763865594,-328.0,0.000344,23]
[327992854,1716763865602,-997.4,0.00034425,2]
[327992855,1716763865612,-755.0,0.00034435,2]
[327992856,1716763865621,-604.0,0.00034435,2]
[327992857,1716763865630,-12604.07569278,0.0003444,4]
[327992858,1716763865639,-1000.0,0.00034452,14]
[327992859,1716763865649,-150.0,0.00034456,7]
[327992860,1716763865658,-150.0,0.00034474,7]
[327992861,1716763865667,-383.94,0.00034491,2]
[327992862,1716763865677,-546.03211667,0.000345,5]
[327992863,1716763865686,-1000.0,0.00034521,14]
[327992864,1716763865695,-163.6,0.00034522,2]
[327992865,1716763865705,-150.0,0.00034548,10]
[327992866,1716763865714,-150.0,0.00034553,7]
[327992867,1716763865723,-150.0,0.00034553,7]
[327992868,1716763865733,-300.0,0.00034559,120]
[327992869,1716763865742,-1000.0,0.00034589,14]
[327992870,1716763865751,-150.0,0.00034632,7]
[327992871,1716763865760,-1000.0,0.00034658,14]
[327992872,1716763865770,-150.0,0.00034665,7]
[327992873,1716763865779,-500.0,0.00034678,10]
[327992874,1716763865788,-700.0,0.00034678,10]
[327992875,1716763865798,-150.0,0.00034711,7]
[327992876,1716763865811,-1000.0,0.00034726,14]
[327992877,1716763865820,-155.0,0.00034786,4]
[327992878,1716763865829,-755.0,0.0003479,2]
[327992879,1716763865838,-604.0,0.0003479,2]
[327992880,1716763865848,-150.0,0.0003479,7]
[327992881,1716763865858,-150.0,0.0003479,7]
[327992882,1716763865867,-150.0,0.0003479,7]
[327992883,1716763865876,-1000.0,0.00034795,14]
[327992884,1716763865885,-1000.0,0.00034863,14]
[327992885,1716763865895,-150.0,0.00034869,7]
[327992886,1716763865905,-150.0,0.00034874,7]
[327992887,1716763865914,-183.88254885,0.0003488,7]
[327992888,1716763865923,-183.88254885,0.0003488,7]
[327992889,1716763865932,-184.38,0.0003488,7]
[327992890,1716763865942,-157.72075615,0.0003488,7]
[327992891,1716763865951,-157.72075615,0.0003488,7]
[327992892,1716763865960,-157.72075615,0.0003488,7]
[327992893,1716763865969,-157.72075615,0.0003488,7]
[327992894,1716763865978,-157.72075615,0.0003488,7]
[327992895,1716763865988,-157.72075615,0.0003488,7]
[327992896,1716763865997,-157.72075615,0.0003488,7]
[327992897,1716763866007,-157.72075615,0.0003488,7]
[327992898,1716763866016,-157.72075615,0.0003488,7]
[327992899,1716763866026,-157.72075615,0.0003488,7]
[327992900,1716763866036,-157.72075615,0.0003488,7]
[327992901,1716763866047,-157.72075615,0.0003488,7]
[327992902,1716763866056,-150.47164102,0.0003488,7]
[327992903,1716763866066,-150.47164102,0.0003488,7]
[327992904,1716763866076,-150.47164102,0.0003488,7]
[327992905,1716763866085,-150.47164102,0.0003488,7]
[327992906,1716763866095,-150.97,0.0003488,7]
[327992907,1716763866104,-150.54664102,0.0003488,7]
[327992908,1716763866113,-150.54664102,0.0003488,7]
[327992909,1716763866122,-150.54664102,0.0003488,7]
[327992910,1716763866131,-150.54664102,0.0003488,7]
[327992911,1716763866141,-150.54664102,0.0003488,7]
[327992912,1716763866150,-150.54664102,0.0003488,7]
[327992913,1716763866158,-150.54664102,0.0003488,7]
[327992914,1716763866167,-150.54664102,0.0003488,7]
[327992915,1716763866176,-150.54664102,0.0003488,7]
[327992916,1716763866185,-150.54664102,0.0003488,7]
[327992917,1716763866293,-150.54664102,0.0003488,7]
[327992918,1716763866302,-150.54664102,0.0003488,7]
[327992919,1716763866311,-150.54664102,0.0003488,7]
[327992920,1716763866320,-150.54664102,0.0003488,7]
[327992921,1716763866329,-150.54664102,0.0003488,7]
[327992922,1716763866338,-150.54664102,0.0003488,7]
[327992923,1716763866348,-150.54664102,0.0003488,7]
[327992924,1716763866357,-150.54664102,0.0003488,7]
[327992925,1716763866366,-157.72075615,0.00034894,7]
[327992926,1716763866375,-694.98447913,0.00034898,2]
[327992927,1716763866385,-506.6214391,0.000349,5]
[327992928,1716763866393,-328.0,0.000349,24]
[327992929,1716763866403,-1000.0,0.00034932,14]
[327992930,1716763866414,-150.0,0.00034948,7]
[327992931,1716763866423,-2706.62579402,0.00034948,28]
[327992932,1716763866432,-500000.0,0.0003498,30]
[327992933,1716763866441,-2039.1399602,0.00034994,2]
[327992934,1716763866451,-278.52984609,0.00034997,5]
[327992935,1716763866460,-2970.75071737,0.00034997,2]
[327992936,1716763866469,-1359.16574611,0.00034997,2]
[327992937,1716763866479,-109107.10759486,0.00034997,2]
[327992938,1716763866489,-1223584.3861594,0.00034997,7]
[327992939,1716763866498,-76467.27639349,0.00034998,7]
[327992940,1716763866507,-135024.00354439,0.00034998,7]
[327992941,1716763866516,-50000.0,0.00035,15]
[327992942,1716763866526,-2177.88455374,0.00035,10]
[327992943,1716763866535,-4668.76889862,0.00035,2]
[327992944,1716763866544,-6231.25967356,0.00035,4]
[327992945,1716763866554,-4036.85974602,0.00035,7]
[327992946,1716763866563,-1000.0,0.00035,14]
[327992947,1716763866572,-1100.0,0.00035,3]
[327992948,1716763866582,-1100.0,0.00035,3]
[327992949,1716763866592,-1100.0,0.00035,3]
[327992950,1716763866602,-1100.0,0.00035,3]
[327992951,1716763866611,-1100.0,0.00035,3]
[327992952,1716763866620,-1100.0,0.00035,3]
[327992953,1716763866630,-1100.0,0.00035,3]
[327992954,1716763866639,-1100.0,0.00035,3]
[327992955,1716763866648,-1100.0,0.00035,3]
[327992956,1716763866658,-1100.0,0.00035,3]
[327992957,1716763866667,-709.0,0.00035,2]
[327992958,1716763866676,-9027.53576424,0.00035,2]
[327992959,1716763866685,-45317.77910565,0.00035,3]
[327992960,1716763866694,-920.46733871,0.00035,4]
[327992961,1716763866703,-2000.0,0.00035,2]
[327992962,1716763866712,-2000.0,0.00035,2]
[327992963,1716763866721,-2000.0,0.00035,2]
[327992964,1716763866731,-2000.0,0.00035,2]
[327992965,1716763866740,-2000.0,0.00035,2]
[327992966,1716763866749,-2000.0,0.00035,2]
[327992967,1716763866759,-2000.0,0.00035,2]
[327992968,1716763866768,-1400.0,0.00035,2]
[327992969,1716763866777,-2000.0,0.00035,2]
[327992970,1716763866786,-2000.0,0.00035,2]
[327992971,1716763866796,-2000.0,0.00035,2]
[327992972,1716763866805,-194.852209,0.00035,14]
[327992973,1716763866814,-2500.0,0.00035,2]
[327992974,1716763866824,-191.5222821,0.00035,4]
[327992975,1716763866833,-3000.0,0.00035,30]
[327992976,1716763866843,-2000.0,0.00035,35]
[327992977,1716763866852,-300.0,0.00035014,120]
[327992978,1716763866862,-150.0,0.00035027,7]
[327992979,1716763866872,-150.0,0.00035027,7]
[327992980,1716763866881,-150.54664102,0.00035046,7]
[327992981,1716763866890,-1000.0,0.00035068,14]
[327992982,1716763866899,-150.0,0.00035082,7]
[327992983,1716763866908,-150.0,0.00035106,7]
[327992984,1716763866918,-151.0,0.00035116,2]
[327992985,1716763866927,-1000.0,0.00035137,14]
[327992986,1716763866936,-755.0,0.00035145,2]
[327992987,1716763866946,-604.0,0.00035145,2]
[327992988,1716763866955,-150.0,0.00035184,7]
[327992989,1716763866964,-1000.0,0.00035205,14]
[327992990,1716763866975,-150.0,0.00035263,7]
[327992991,1716763866984,-150.0,0.00035263,7]
[327992992,1716763866995,-1000.0,0.00035274,14]
[327992993,1716763867004,-150.0,0.00035291,7]